fUST/lending_fUST_20250423
["ID","MTS","AMOUNT","RATE_DAILY","PERIOD"]
[358691829,1745377847785,-500.0,0.00021448,2]
[358691830,1745377847795,-500.0,0.00021448,2]
[358691831,1745377847804,-159.80167937,0.000215,2]
[358691832,1745377847814,-306.0,0.00021616,2]
[358691833,1745377847824,-749.2352521,0.00021616,2]
[358691834,1745377847834,-153.0,0.00021644,2]
[358691835,1745377847844,-153.0,0.00021644,2]
[358691836,1745377847853,-153.0,0.00021644,2]
[358691837,1745377847863,-7148.22088549,0.00021698,2]
[358691838,1745377847873,-229.783687,0.000217,2]
[358691839,1745377847883,-198.78782317,0.00021722,2]
[358691840,1745377847892,-500.0,0.00021722,2]
[358691841,1745377847902,-439.595406,0.00021722,2]
[358691842,1745377847912,-208.87011952,0.00021722,2]
[358691843,1745377847922,-151.0,0.00021722,2]
[358691844,1745377847932,-151.92646039,0.00021722,2]
[358691845,1745377847943,-263.85964923,0.00021722,2]
[358691846,1745377847954,-500.0,0.00021722,2]
[358691847,1745377847965,-221.82388622,0.00021722,2]
[358691848,1745377847975,-151.0,0.00021722,2]
[358691849,1745377847984,-151.0,0.00021722,2]
[358691850,1745377847994,-500.0,0.00021722,2]
[358691851,1745377848006,-502.035948,0.00021722,2]
[358691852,1745377848015,-151.0,0.00021722,2]
[358691853,1745377848025,-429.0,0.00021722,2]
[358691854,1745377848036,-429.0,0.00021722,2]
[358691855,1745377848046,-500.0,0.00021722,2]
[358691856,1745377848056,-152.28088969,0.00021722,2]
[358691857,1745377848067,-155.64417598,0.00021722,2]
[358691858,1745377848077,-500.0,0.00021722,2]
[358691859,1745377848087,-500.0,0.00021722,2]
[358691860,1745377848098,-500.0,0.00021722,2]
[358691861,1745377848107,-248.60963786,0.00021722,2]
[358691862,1745377848118,-12320.01091066,0.00021762,3]
[358691863,1745377848128,-188.0,0.000218,2]
[358691864,1745377848139,-188.0,0.000218,2]
[358691865,1745377848149,-210.46999999,0.000218,2]
[358691866,1745377848159,-151.0,0.000218,4]
[358691867,1745377848170,-4263.74813769,0.00021817,2]
[358691868,1745377848181,-500.0,0.00021917,2]
[358691869,1745377848191,-151.0,0.00021917,2]
[358691870,1745377848201,-151.0,0.00021917,2]
[358691871,1745377848214,-151.0,0.00021917,2]
[358691872,1745377848224,-151.0,0.00021917,2]
[358691873,1745377848235,-151.0,0.00021917,2]
[358691874,1745377848245,-151.0,0.00021917,2]
[358691875,1745377848256,-151.0,0.00021917,2]
[358691876,1745377848266,-151.0,0.00021917,2]
[358691877,1745377848276,-151.0,0.00021917,2]
[358691878,1745377848286,-151.0,0.00021917,2]
[358691879,1745377848296,-151.63389,0.00021917,2]
[358691880,1745377848306,-151.0,0.00021917,2]
[358691881,1745377848316,-151.0,0.00021917,2]
[358691882,1745377848326,-151.0,0.00021917,2]
[358691883,1745377848336,-151.0,0.00021917,2]
[358691884,1745377848346,-152.657048,0.00021917,2]
[358691885,1745377848369,-151.0,0.00021917,2]
[358691886,1745377848380,-155.971187,0.00021917,2]
[358691887,1745377848390,-151.0,0.00021917,2]
[358691888,1745377848403,-151.0,0.00021917,2]
[358691889,1745377848413,-151.0,0.00021917,2]
[358691890,1745377848424,-151.61951,0.00021917,2]
[358691891,1745377848435,-151.0,0.00021917,2]
[358691892,1745377848446,-151.0,0.00021917,2]
[358691893,1745377848456,-151.0,0.00021917,2]
[358691894,1745377848467,-151.0,0.00021917,2]
[358691895,1745377848478,-151.0,0.00021917,2]
[358691896,1745377848488,-151.0,0.00021917,2]
[358691897,1745377848499,-151.0,0.00021917,2]
[358691898,1745377848510,-151.0,0.00021917,2]
[358691899,1745377848521,-151.0,0.00021917,2]
[358691900,1745377848531,-151.0,0.00021917,2]
[358691901,1745377848542,-151.0,0.00021917,2]
[358691902,1745377848552,-151.0,0.00021917,2]
[358691903,1745377848563,-151.0,0.00021917,2]
[358691904,1745377848574,-277.604508,0.00021917,2]
[358691905,1745377848585,-277.604508,0.00021917,2]
[358691906,1745377848595,-277.604508,0.00021917,2]
[358691907,1745377848606,-277.604508,0.00021917,2]
[358691908,1745377848617,-277.604508,0.00021917,2]
[358691909,1745377848628,-277.604508,0.00021917,2]
[358691910,1745377848639,-277.604508,0.00021917,2]
[358691911,1745377848650,-277.604508,0.00021917,2]
[358691912,1745377848660,-225.640337,0.00021917,2]
[358691913,1745377848671,-151.0,0.00021917,2]
[358691914,1745377848681,-151.0,0.00021917,2]
[358691915,1745377848692,-157.774374,0.00021917,2]
[358691916,1745377848703,-151.0,0.00021917,2]
[358691917,1745377848713,-151.0,0.00021917,2]
[358691918,1745377848724,-151.0,0.00021917,2]
[358691919,1745377848734,-151.0,0.00021917,2]
[358691920,1745377848745,-622.874148,0.00021917,2]
[358691921,1745377848755,-622.874148,0.00021917,2]
[358691922,1745377848766,-622.874148,0.00021917,2]
[358691923,1745377848776,-622.874148,0.00021917,2]
[358691924,1745377848787,-622.874148,0.00021917,2]
[358691925,1745377848797,-622.874148,0.00021917,2]
[358691926,1745377848808,-622.874148,0.00021917,2]
[358691927,1745377848819,-622.874148,0.00021917,2]
[358691928,1745377848830,-622.874148,0.00021917,2]
[358691929,1745377848840,-622.874148,0.00021917,2]
[358691930,1745377848850,-151.0,0.00021917,2]
[358691931,1745377848860,-151.0,0.00021917,2]
[358691932,1745377848870,-151.0,0.00021917,2]
[358691933,1745377848880,-151.0,0.00021917,2]
[358691934,1745377848890,-151.0,0.00021917,2]
[358691935,1745377848901,-151.0,0.00021917,2]
[358691936,1745377848911,-286.737401,0.00021917,2]
[358691937,1745377848921,-182.717148,0.00021917,2]
[358691938,1745377848931,-182.717148,0.00021917,2]
[358691939,1745377848942,-182.717148,0.00021917,2]
[358691940,1745377848953,-182.717148,0.00021917,2]
[358691941,1745377848970,-182.717148,0.00021917,2]
[358691942,1745377848981,-182.717148,0.00021917,2]
[358691943,1745377848991,-182.717148,0.00021917,2]
[358691944,1745377849002,-182.717148,0.00021917,2]
[358691945,1745377849012,-166.004922,0.00021917,2]
[358691946,1745377849023,-151.0,0.00021917,2]
[358691947,1745377849033,-151.0,0.00021917,2]
[358691948,1745377849045,-151.0,0.00021917,2]
[358691949,1745377849056,-151.0,0.00021917,2]
[358691950,1745377849066,-151.0,0.00021917,2]
[358691951,1745377849077,-151.0,0.00021917,2]
[358691952,1745377849087,-151.0,0.00021917,2]
[358691953,1745377849097,-230.510186,0.00021917,2]
[358691954,1745377849107,-180.782929,0.00021917,2]
[358691955,1745377849117,-180.782929,0.00021917,2]
[358691956,1745377849128,-180.782929,0.00021917,2]
[358691957,1745377849139,-180.782929,0.00021917,2]
[358691958,1745377849150,-180.782929,0.00021917,2]
[358691959,1745377849161,-180.782929,0.00021917,2]
[358691960,1745377849171,-180.782929,0.00021917,2]
[358691961,1745377849181,-180.782929,0.00021917,2]
[358691962,1745377849191,-215.017129,0.00021917,2]
[358691963,1745377849202,-215.017129,0.00021917,2]
[358691964,1745377849212,-215.017129,0.00021917,2]
[358691965,1745377849223,-215.017129,0.00021917,2]
[358691966,1745377849233,-215.017129,0.00021917,2]
[358691967,1745377849399,-215.017129,0.00021917,2]
[358691968,1745377849410,-215.017129,0.00021917,2]
[358691969,1745377849420,-215.017129,0.00021917,2]
[358691970,1745377849430,-169.02963,0.00021917,2]
[358691971,1745377849440,-169.02963,0.00021917,2]
[358691972,1745377849450,-169.02963,0.00021917,2]
[358691973,1745377849460,-169.02963,0.00021917,2]
[358691974,1745377849471,-169.02963,0.00021917,2]
[358691975,1745377849480,-169.02963,0.00021917,2]
[358691976,1745377849491,-169.02963,0.00021917,2]
[358691977,1745377849500,-169.02963,0.00021917,2]
[358691978,1745377849510,-151.0,0.00021917,2]
[358691979,1745377849520,-151.0,0.00021917,2]
[358691980,1745377849530,-151.0,0.00021917,2]
[358691981,1745377849540,-500.0,0.00021917,2]
[358691982,1745377849549,-151.0,0.00021917,2]
[358691983,1745377849559,-500.0,0.00021917,2]
[358691984,1745377849570,-364.46641171,0.00021917,2]
[358691985,1745377849579,-500.0,0.00021917,2]
[358691986,1745377849590,-151.0,0.00021917,2]
[358691987,1745377849599,-151.0,0.00021917,2]
[358691988,1745377849609,-151.0,0.00021917,2]
[358691989,1745377849619,-151.0,0.00021917,2]
[358691990,1745377849629,-255.830311,0.00021917,2]
[358691991,1745377849639,-500.92939929,0.00021917,2]
[358691992,1745377849649,-501.84312925,0.00021917,2]
[358691993,1745377849658,-500.0,0.00021917,2]
[358691994,1745377849668,-151.0,0.00021917,2]
[358691995,1745377849677,-153.476036,0.00021917,2]
[358691996,1745377849687,-502.6571757,0.00021917,2]
[358691997,1745377849696,-500.92309922,0.00021917,2]
[358691998,1745377849706,-497.15526244,0.00021917,2]
[358691999,1745377849715,-151.0,0.00021917,2]
[358692000,1745377849726,-500.46035697,0.00021917,2]
[358692001,1745377849735,-151.0,0.00021917,2]
[358692002,1745377849745,-151.0,0.00021917,2]
[358692003,1745377849755,-151.0,0.00021917,2]
[358692004,1745377849764,-151.0,0.00021917,2]
[358692005,1745377849774,-151.0,0.00021917,2]
[358692006,1745377849783,-151.0,0.00021917,2]
[358692007,1745377849793,-151.0,0.00021917,2]
[358692008,1745377849804,-500.0,0.00021917,2]
[358692009,1745377849814,-151.0,0.00021917,2]
[358692010,1745377849824,-151.0,0.00021917,2]
[358692011,1745377849835,-151.0,0.00021917,2]
[358692012,1745377849846,-151.0,0.00021917,2]
[358692013,1745377849856,-151.0,0.00021917,2]
[358692014,1745377849867,-222.357794,0.00021917,2]
[358692015,1745377849877,-500.47479959,0.00021917,2]
[358692016,1745377849888,-501.01008413,0.00021917,2]
[358692017,1745377849900,-500.0,0.00021917,2]
[358692018,1745377849909,-151.0,0.00021917,2]
[358692019,1745377849919,-151.0,0.00021917,2]
[358692020,1745377849930,-151.0,0.00021917,2]
[358692021,1745377849941,-151.0,0.00021917,2]
[358692022,1745377849954,-250.788066,0.00021917,2]
[358692023,1745377849966,-500.0,0.00021917,2]
[358692024,1745377849977,-501.23985153,0.00021917,2]
[358692025,1745377849987,-500.0,0.00021917,2]
[358692026,1745377849998,-182.558113,0.00021917,2]
[358692027,1745377850009,-500.0,0.00021917,2]
[358692028,1745377850018,-500.0,0.00021917,2]
[358692029,1745377850028,-506.25344278,0.00021917,2]
[358692030,1745377850040,-500.0,0.00021917,2]
[358692031,1745377850050,-501.12928035,0.00021917,2]
[358692032,1745377850059,-500.0,0.00021917,2]
[358692033,1745377850069,-94.92805618,0.00021917,2]
[358692034,1745377884124,-425.682982,0.0002099,2]
[358692035,1745377887622,-174.317018,0.0002099,2]
[358692036,1745377892243,-166.5654824,0.00020312,2]
[358692037,1745377895544,-158.682982,0.00020312,2]
[358692038,1745377909421,-174.7515356,0.00020312,2]
[358692039,1745377909450,-23.86428224,0.00020312,2]
[358692045,1745377923464,-204.17004016,0.00020311,2]
[358692047,1745377940819,-312.57650463,0.000203,2]
[358692048,1745377947087,-268.83301791,0.000203,2]
[358692049,1745377955695,-174.43767722,0.000203,2]
[358692050,1745377978618,184.9905074,0.00019732,2]
[358692051,1745377983359,-152.0,0.00020211,2]
[358692053,1745378016570,-96.20672491,0.00020211,2]
[358692054,1745378016595,-174.43767722,0.00020214,2]
[358692055,1745378016620,-29.35559787,0.00020298,2]
[358692056,1745378042623,-186.2683292,0.00020299,2]
[358692057,1745378062410,-267.886682,0.00020298,2]
[358692062,1745378090018,-152.0,0.00020199,2]
[358692063,1745378102327,-115.88668123,0.00020199,2]
[358692064,1745378102355,-313.7316708,0.00020299,2]
[358692065,1745378102385,-70.38164797,0.00020299,2]
[358692066,1745378105424,-276.90460042,0.00020298,2]
[358692067,1745378139214,-486.2683292,0.00020111,2]
[358692068,1745378145876,1150.0,0.0002001,2]
[358692069,1745378148176,-23.09539958,0.00020298,2]
[358692070,1745378148201,-185.0,0.00020298,2]
[358692071,1745378148232,-291.90460042,0.00020299,2]
[358692072,1745378168584,-300.0,0.00020298,2]
[358692073,1745378171513,-137.71375161,0.00020299,2]
[358692074,1745378171543,-135.69618989,0.00020299,2]
[358692075,1745378173836,175.9418491,0.00019782,2]
[358692077,1745378210089,-364.30381011,0.00020299,2]
[358692078,1745378210114,-500.0,0.00020299,2]
[358692079,1745378210146,-165.89168989,0.00020299,2]
[358692080,1745378224842,-231.14147801,0.00020298,2]
[358692081,1745378250392,-68.85852199,0.00020298,2]
[358692082,1745378250421,-334.10831011,0.00020299,2]
[358692083,1745378250446,-500.0,0.00020299,2]
[358692084,1745378250471,-97.0331679,0.00020299,2]
[358692095,1745378268853,-200.00651877,0.00020255,2]
[358692111,1745378284790,-160.12358261,0.00020255,2]
[358692112,1745378334883,684.81270842,0.0002,120]
[358692113,1745378343930,-178.45902422,0.00020255,2]
[358692114,1745378343962,-58.65299985,0.00020298,2]
[358692116,1745378402336,-183.34613243,0.00020299,2]
[358692117,1745378461974,-330.38208805,0.00020299,2]
[358692118,1745378461999,-65.61791195,0.00020299,2]
[358692119,1745378465160,-152.0,0.00020298,2]
[358692120,1745378494925,-500.0,0.000202,2]
[358692121,1745378521974,-444.4324571,0.000202,2]
[358692122,1745378524741,-152.0,0.000202,2]
[358692124,1745378547637,2235.6391214,0.00019617,2]
[358692125,1745378550142,-300.0,0.00020198,2]
[358692126,1745378562063,942.2724505,0.00019444,2]
[358692127,1745378563272,552.658305,0.00019444,2]
[358692128,1745378582599,-152.0,0.00020198,2]
[358692150,1745378625868,-231.34613243,0.00020198,2]
[358692151,1745378642551,-170.34271849,0.00020198,2]
[358692152,1745378644876,-146.31114908,0.00020198,2]
[358692153,1745378644899,-83.34613243,0.00020198,2]
[358692154,1745378652989,-78.88689415,0.00020198,2]
[358692155,1745378653013,-89.76697342,0.000202,2]
[358692156,1745378690950,-108.7984065,0.000202,2]
[358692157,1745378690973,-264.28802334,0.000202,2]
[358692162,1745378711420,-189.87641739,0.000201,2]
[358692169,1745378763294,-199.9956401,0.000201,2]
[358692171,1745378773777,-250.0,0.000201,2]
[358692173,1745378816987,-360.12794251,0.000201,2]
[358692174,1745378817010,-32.15613049,0.00020273,2]
[358692175,1745378831178,-199.9956401,0.00020272,2]
[358692176,1745378837685,763.10879085,0.0002,2]
[358692179,1745378875554,-191.89311598,0.00020173,2]
[358692181,1745378882103,-1.12559903,0.00020173,2]
[358692182,1745378882127,-150.87440097,0.00020273,2]
[358692183,1745378891419,-250.0,0.000202,2]
[358692184,1745378924766,9155.48226571,0.000175,4]
[358692186,1745378942075,-200.0,0.000202,2]
[358692187,1745378947869,-203.05344201,0.000202,2]
[358692188,1745378956434,250.0,0.0002,2]
[358692189,1745378957272,-253.05344201,0.000202,2]
[358692190,1745378968669,-1259.0,0.00045742,120]
[358692195,1745378983654,-418.17485641,0.00020172,2]
[358692198,1745378995494,-158.85230396,0.00020172,2]
[358692199,1745378997143,-422.97283963,0.00020172,2]
[358692200,1745379000531,-170.22687027,0.00020171,2]
[358692202,1745379014273,-202.91228764,0.0002017,2]
[358692203,1745379017642,-97.08771236,0.0002017,2]
[358692204,1745379017666,-105.82457528,0.0002017,2]
[358692228,1745379032606,-202.17542472,0.0002017,2]
[358692229,1745379032617,-300.0,0.0002017,2]
[358692230,1745379032626,-439.96063009,0.00020171,2]
[358692257,1745379038713,-500.0,0.0002017,2]
[358692259,1745379038723,-178.9734876,0.0002017,2]
[358692261,1745379038733,-500.0,0.0002017,2]
[358692263,1745379038742,-500.0,0.0002017,2]
[358692265,1745379038757,-170.34271849,0.0002017,2]
[358692267,1745379038767,-500.0,0.0002017,2]
[358692270,1745379038777,-500.0,0.0002017,2]
[358692272,1745379038787,-500.0,0.0002017,2]
[358692274,1745379038796,-500.0,0.0002017,2]
[358692276,1745379038806,-500.0,0.0002017,2]
[358692277,1745379038815,-500.0,0.0002017,2]
[358692279,1745379038825,-500.0,0.0002017,2]
[358692281,1745379038834,-500.0,0.0002017,2]
[358692283,1745379038845,-500.0,0.0002017,2]
[358692285,1745379038855,-500.0,0.0002017,2]
[358692287,1745379038864,-500.0,0.0002017,2]
[358692289,1745379038874,-500.0,0.0002017,2]
[358692291,1745379038884,-500.0,0.0002017,2]
[358692293,1745379038894,-500.0,0.0002017,2]
[358692295,1745379038904,-500.0,0.0002017,2]
[358692297,1745379038913,-500.0,0.0002017,2]
[358692299,1745379038923,-500.0,0.0002017,2]
[358692301,1745379038933,-500.0,0.0002017,2]
[358692302,1745379038943,-500.0,0.0002017,2]
[358692303,1745379038952,-500.0,0.0002017,2]
[358692304,1745379038961,-500.0,0.0002017,2]
[358692305,1745379038971,-500.0,0.0002017,2]
[358692306,1745379038980,-500.0,0.0002017,2]
[358692307,1745379038990,-500.0,0.0002017,2]
[358692308,1745379039004,-500.0,0.0002017,2]
[358692309,1745379039013,-500.0,0.0002017,2]
[358692310,1745379039023,-432.75276029,0.0002017,2]
[358692311,1745379039032,-500.0,0.0002017,2]
[358692312,1745379039042,-500.0,0.0002017,2]
[358692313,1745379039052,-500.0,0.0002017,2]
[358692314,1745379039062,-500.0,0.0002017,2]
[358692315,1745379039072,-500.0,0.0002017,2]
[358692316,1745379039082,-500.0,0.0002017,2]
[358692317,1745379039092,-500.0,0.0002017,2]
[358692318,1745379039102,-500.0,0.0002017,2]
[358692319,1745379039112,-500.0,0.0002017,2]
[358692320,1745379039121,-500.0,0.0002017,2]
[358692321,1745379039131,-500.0,0.0002017,2]
[358692322,1745379039141,-500.0,0.0002017,2]
[358692323,1745379039150,-500.0,0.0002017,2]
[358692324,1745379039160,-500.0,0.0002017,2]
[358692325,1745379039170,-500.0,0.0002017,2]
[358692326,1745379039180,-283.83652982,0.0002017,2]
[358692327,1745379039189,-500.0,0.0002017,2]
[358692328,1745379039199,-500.0,0.0002017,2]
[358692329,1745379039210,-500.0,0.0002017,2]
[358692330,1745379039220,-500.0,0.0002017,2]
[358692331,1745379039230,-500.0,0.0002017,2]
[358692332,1745379039240,-500.0,0.0002017,2]
[358692333,1745379039252,-500.0,0.0002017,2]
[358692334,1745379039263,-500.0,0.0002017,2]
[358692335,1745379039273,-500.0,0.0002017,2]
[358692336,1745379039283,-500.0,0.0002017,2]
[358692337,1745379039292,-500.0,0.0002017,2]
[358692338,1745379039303,-500.0,0.0002017,2]
[358692339,1745379039313,-500.0,0.0002017,2]
[358692340,1745379039323,-500.0,0.0002017,2]
[358692341,1745379039333,-500.0,0.0002017,2]
[358692342,1745379039343,-500.0,0.0002017,2]
[358692343,1745379039355,-500.0,0.0002017,2]
[358692344,1745379039366,-500.0,0.0002017,2]
[358692345,1745379039376,-500.0,0.0002017,2]
[358692346,1745379039386,-347894.70624964,0.00020171,2]
[358692347,1745379039397,-158.85230396,0.000202,2]
[358692348,1745379039407,-500.0,0.00020273,2]
[358692349,1745379039417,-500.0,0.00020273,2]
[358692350,1745379039427,-500.0,0.00020273,2]
[358692351,1745379039440,-500.0,0.00020273,2]
[358692352,1745379039450,-500.0,0.00020273,2]
[358692353,1745379039460,-545.41765676,0.00020273,2]
[358692354,1745379039469,-500.0,0.00020273,2]
[358692355,1745379039480,-500.0,0.00020273,2]
[358692356,1745379039489,-500.0,0.00020273,2]
[358692357,1745379039500,-500.0,0.00020273,2]
[358692358,1745379039510,-300.0,0.00020273,2]
[358692359,1745379039521,-500.0,0.00020299,2]
[358692360,1745379039531,-211.79210303,0.00020299,2]
[358692361,1745379039541,-121247.3328938,0.000203,2]
[358692397,1745379043624,-500.0,0.000203,2]
[358692401,1745379046532,-574.47949418,0.000203,2]
[358692402,1745379046545,-1530.18372225,0.000203,2]
[358692403,1745379046642,-53780.62121313,0.000203,2]
[358692412,1745379122055,-500.0,0.0002017,2]
[358692413,1745379123741,-300.0,0.00020169,2]
[358692414,1745379123767,-66.43072016,0.0002017,2]
[358692415,1745379126167,-152.0,0.0002007,2]
[358692417,1745379183083,-157.68220588,0.0002007,2]
[358692418,1745379183107,-110.6612054,0.0002007,2]
[358692419,1745379198383,-102.48880096,0.0002007,2]
[358692420,1745379198414,-97.20074275,0.00020169,2]
[358692422,1745379249033,-423.74934831,0.0002007,2]
[358692423,1745379338075,486.6868554,0.0001997,2]
[358692446,1745379537987,-152.50130338,0.0002007,2]
[358692447,1745379538010,-55.9919696,0.00020073,2]
[358692448,1745379542624,-152.50130338,0.00020073,2]
[358692451,1745379645538,22525.2817798,0.00019217,2]
[358692453,1745379680162,-820.78976981,0.00020072,2]
[358692464,1745379706994,276.329153,0.00019193,2]
[358692465,1745379707594,-179.21023019,0.00020072,2]
[358692466,1745379731559,-199.72391683,0.00020072,2]
[358692467,1745379764573,-259.69072741,0.00020072,2]
[358692469,1745379825790,1697.0,0.0002,2]
[358692476,1745379974429,3000.0,0.0002,2]
[358692477,1745379988379,551.16574818,0.000189,2]
[358692527,1745380231863,-215.0,0.00020069,2]
[358692528,1745380231873,-1051.57376076,0.0002007,2]
[358692529,1745380231885,-35952.43000479,0.0002007,2]
[358692530,1745380231914,-6139.83110041,0.0002007,2]
[358692531,1745380231967,-87725.11894404,0.0002007,2]
[358692533,1745380231977,-300.0,0.00020071,2]
[358692535,1745380231987,-815.0,0.00020071,2]
[358692537,1745380231996,-14507.20234124,0.00020072,2]
[358692539,1745380232006,-286.59219221,0.00020072,2]
[358692542,1745380232017,-907.15711719,0.00020072,2]
[358692544,1745380232027,-846.63843736,0.00020072,2]
[358692546,1745380232036,-500.0,0.00020173,2]
[358692548,1745380232047,-501.07006597,0.00020173,2]
[358692550,1745380232057,-211.31123705,0.00020173,2]
[358692552,1745380232066,-500.0,0.00020173,2]
[358692554,1745380232077,-500.0,0.00020173,2]
[358692556,1745380232086,-500.0,0.00020173,2]
[358692558,1745380232096,-500.0,0.00020173,2]
[358692560,1745380232107,-503.64702247,0.00020173,2]
[358692562,1745380232117,-500.0,0.00020173,2]
[358692564,1745380232126,-632.60844502,0.00020173,2]
[358692566,1745380232136,-500.0,0.00020173,2]
[358692568,1745380232146,-500.0,0.00020173,2]
[358692570,1745380232155,-500.0,0.00020173,2]
[358692572,1745380232165,-375.09233264,0.00020173,2]
[358692573,1745380232174,-504.11350733,0.00020173,2]
[358692575,1745380232183,-500.84468112,0.00020173,2]
[358692576,1745380232192,-500.61103362,0.00020173,2]
[358692578,1745380232202,-160.75568323,0.00020173,2]
[358692579,1745380232212,-296.58744064,0.00020173,2]
[358692581,1745380232221,-500.01038789,0.00020173,2]
[358692582,1745380232230,-500.0,0.00020173,2]
[358692583,1745380232240,-500.0,0.00020173,2]
[358692584,1745380232249,-500.54934063,0.00020173,2]
[358692585,1745380232258,-500.0,0.00020173,2]
[358692586,1745380232268,-420.76072555,0.00020173,2]
[358692587,1745380232278,-500.62521594,0.00020173,2]
[358692588,1745380232288,-500.0,0.00020173,2]
[358692589,1745380232299,-500.0,0.00020173,2]
[358692590,1745380232309,-500.0,0.00020173,2]
[358692591,1745380232319,-501.68700575,0.00020173,2]
[358692592,1745380232329,-502.49315307,0.00020173,2]
[358692593,1745380232339,-501.03935532,0.00020173,2]
[358692594,1745380232349,-500.52622499,0.00020173,2]
[358692595,1745380232360,-500.0,0.00020173,2]
[358692596,1745380232369,-502.70159432,0.00020173,2]
[358692597,1745380232379,-176.44354541,0.00020173,2]
[358692598,1745380232388,-501.13335358,0.00020173,2]
[358692599,1745380232399,-501.64053691,0.00020173,2]
[358692600,1745380232408,-500.0,0.00020173,2]
[358692601,1745380232418,-503.10886556,0.00020173,2]
[358692602,1745380232428,-505.20351489,0.00020173,2]
[358692603,1745380232437,-500.0,0.00020173,2]
[358692604,1745380232447,-501.43054275,0.00020173,2]
[358692605,1745380232456,-164.52881474,0.00020173,2]
[358692606,1745380232466,-443.98849125,0.00020173,2]
[358692607,1745380232477,-545.41765676,0.00020173,2]
[358692608,1745380232487,-500.0,0.00020173,2]
[358692609,1745380232496,-500.0,0.00020173,2]
[358692610,1745380232506,-500.0,0.00020173,2]
[358692611,1745380232516,-300.0,0.00020173,2]
[358692612,1745380232526,-500.0,0.00020173,2]
[358692613,1745380232535,-500.0,0.00020173,2]
[358692614,1745380232545,-500.0,0.00020199,2]
[358692615,1745380232555,-500.0,0.00020199,2]
[358692616,1745380232565,-500.0,0.00020199,2]
[358692617,1745380232574,-500.0,0.00020199,2]
[358692618,1745380232585,-604.31063488,0.00020199,2]
[358692619,1745380232595,-494.21335178,0.00020199,2]
[358692620,1745380232605,-500.0,0.00020199,2]
[358692621,1745380232615,-540.10602468,0.00020199,2]
[358692622,1745380232624,-500.0,0.00020199,2]
[358692623,1745380232634,-500.0,0.00020199,2]
[358692624,1745380232643,-500.0,0.00020199,2]
[358692625,1745380232653,-500.0,0.00020199,2]
[358692626,1745380232663,-500.0,0.00020199,2]
[358692627,1745380232673,-500.0,0.00020199,2]
[358692628,1745380232682,-500.63196204,0.00020199,2]
[358692629,1745380232692,-500.0,0.00020199,2]
[358692630,1745380232701,-500.0,0.00020199,2]
[358692631,1745380232711,-500.0,0.00020199,2]
[358692632,1745380232721,-500.0,0.00020199,2]
[358692633,1745380232732,-500.0,0.00020199,2]
[358692634,1745380232742,-500.0,0.00020199,2]
[358692635,1745380232753,-500.0,0.00020199,2]
[358692636,1745380232762,-500.0,0.00020199,2]
[358692637,1745380232773,-500.0,0.00020199,2]
[358692638,1745380232783,-500.0,0.00020199,2]
[358692639,1745380232794,-500.0,0.00020199,2]
[358692640,1745380232804,-500.0,0.00020199,2]
[358692641,1745380232815,-500.0,0.00020199,2]
[358692642,1745380232825,-500.0,0.00020199,2]
[358692643,1745380232834,-500.0,0.00020199,2]
[358692644,1745380232844,-500.0,0.00020199,2]
[358692645,1745380232854,-500.0,0.00020199,2]